{"text_format":"1","workbook":"xlsx","n_sheets":4,"sheets":["入力","別記様式第２号","別記様式第３号","記載例"],"not_rendered":{"charts":0,"images":1,"macros":1,"external_links":0,"defined_names":49,"comments":1,"pivot_tables":0},"unopened":[],"bounds":{"document_bytes":16777216,"sheet_cells":100000,"rows_first":2000,"rows_last":500,"rows_between":2000,"halvings":0,"cell_chars":16384,"cell_head_chars":4096},"cells_cut":0,"cells_raw":0,"read":"whole","date_system":"1900"}

{"sheet":"入力","index":0,"n_rows":92,"n_cols":13,"rows_kept":92,"cut":false,"hidden":false,"merged":[[33,1,34,1],[0,1,0,16],[25,12,27,15],[45,3,45,4],[48,3,48,7],[2,3,2,4],[31,7,32,15],[32,3,32,5],[33,3,33,15],[8,3,8,5],[10,3,10,5],[12,3,12,6],[19,3,19,15],[21,3,21,15],[27,3,27,4],[4,3,4,4],[6,3,6,4],[23,3,23,15],[49,3,49,7],[39,3,39,4],[34,3,34,15],[36,3,36,15],[35,3,35,15],[37,3,37,7],[43,3,43,7],[42,3,42,15],[29,3,29,6]]}
[null,"保管場所届出（軽自動車の場合・登録自動車の保管場所のみ変更の場合）"]
[]
[null,"項目名",null,"必須項目",null,"　「入力」シートに入力後、「印刷」ボタンを押下すると様式２号、様式３号が印刷されます→"]
[]
[null,"新規・変更",null,null,null,null,null,null,"軽自動車の登録は「新規」、保管場所のみ変更は「変更」"]
[]
[null,"自動車の区分",null,null,null,null,null,null,"「軽自動車」・「登録自動車」（軽以外）"]
[]
[null,"車　名",null,null,null,null,null,null,"トヨタ、ニッサン　など　（自動車の商品名ではありません）"]
[]
[null,"型　式",null,null,null,null,null,null,"車検証等にて確認してください"]
[]
[null,"車台番号",null,null,null,null,null,null,"「－」ハイフンは不要です"]
[]
[null,"自動車の大きさ",null,"右詰で入力、小数点以下は切り捨て"]
[null,"長さ",null,null,null,null,null,"cm","※「３３９」を超える場合は、登録自動車です"]
[null,"幅",null,null,null,null,null,"cm","※「１４７」を超える場合は、登録自動車です"]
[null,"高さ",null,null,null,null,null,"cm","軽自動車と登録自動車では手続が違いますので確認してください"]
[]
[null,"自動車の使用の本拠の位置"]
[]
[null,"自動車の保管場所の位置"]
[]
[null,"(変更前の保管場所の位置)"]
[]
[null,"※保管場所標章番号",null,null,null,null,null,null,null,null,null,null,"※同一駐車場で代替え等の場合、標章番号を入れると所在図が省略できます"]
[]
[null,"警察署名",null,null,null,"保管場所を管轄する警察署で手続きを行います"]
[]
[null,"申請年月日",null,{"$f":"TODAY()","v":"2024-02-22"},null,null,null,null,"初期値：今日の日付　、”西暦年/月/日”　で入力"]
[]
[null,"申請者",null,null,null,null,null,"「申請者」欄は車検証の「使用者」にあたります。\n運輸支局に提出する印鑑証明と住所・氏名が合っている必要がありますので注意してください。"]
[null,"郵便番号"]
[null,"住所"]
[]
[null,"フリガナ"]
[null,"氏名"]
[null,"電話番号"]
[]
[null,"使用権原",null,null,null,null,"同じ駐車場で車を入れ替える場合は「代替」、それ以外は「新規」を選択"]
[]
[null,"連絡先"]
[null,"氏名"]
[null,"電話"]
[]
[null,"新規・代替",null,null,null,null,"同じ駐車場で車を入れ替える場合は「代替」、それ以外は「新規」を選択"]
[]
[null,"車両番号"]
[null,"前車",null,null,null,null,null,null,"「代替」の場合、入れ替えとなる前車のナンバーを記入してください"]
[null,"現車",null,null,null,null,null,null,"「新規」を選択した場合、前車・現車とも記入の必要はありません"]
[]
[]
[]
[]
[]
[]
[]
[]
[]
[]
[]
[]
[]
[]
[]
[]
[]
[]
[]
[]
[]
[]
[null,"１号申請書"]
[null,"２号届出書"]
[null,"３号申請書"]
[null,"６号申請書"]
[null,"所在図・配置図"]
[null,"自認書"]
[null,"使用承諾"]
[]
[null,"自己"]
[null,"他人"]
[null,"共有"]
[]
[null,"新規"]
[null,"代替"]
[]
[null,"（新　規）"]
[null,"（変　更）"]
[]
[null,"登録自動車"]
[null,"軽自動車"]

{"sheet":"別記様式第２号","index":1,"n_rows":94,"n_cols":137,"rows_kept":94,"cut":false,"hidden":false,"merged":[[33,5,34,35],[28,60,30,67],[28,73,30,77],[28,78,30,83],[36,67,37,99],[11,111,12,116],[15,127,16,130],[13,117,14,121],[15,117,16,121],[28,37,30,41],[28,42,30,48],[15,122,16,126],[13,127,14,130],[11,122,12,126],[48,86,49,111],[54,104,55,124],[28,49,30,53],[28,54,30,59],[28,68,30,71],[13,101,14,108],[15,101,16,108],[28,3,30,27],[4,122,7,138],[25,30,26,39],[25,136,26,138],[13,132,14,138],[15,132,16,138],[4,79,7,92],[11,132,12,138],[10,101,12,108],[11,117,12,121],[10,68,17,100],[18,30,21,138],[22,30,24,138],[11,127,12,130],[13,122,14,126],[25,40,26,135],[28,32,30,36],[62,110,64,138],[59,96,64,99],[1,1,3,23],[8,1,9,28],[8,30,9,66],[19,3,20,27],[40,16,42,37],[4,101,7,121],[39,68,55,68],[62,36,64,38],[59,100,61,103],[62,100,64,103],[50,69,53,81],[62,104,64,109],[59,36,61,38],[59,39,64,56],[62,63,64,69],[59,60,64,62],[4,22,7,78],[10,1,17,29],[10,30,17,67],[8,101,9,138],[8,68,9,100],[23,3,25,27],[69,5,70,82],[72,4,74,5],[96,4,97,5],[96,6,97,100],[86,4,87,6],[91,95,92,96],[93,4,94,5],[93,6,94,100],[89,4,89,5],[89,6,89,138],[84,4,84,5],[86,7,87,99],[84,6,84,125],[79,4,79,5],[79,6,80,87],[82,4,82,6],[82,7,82,138],[76,6,77,138],[72,6,74,138],[76,4,78,5],[66,1,67,3],[59,63,61,69],[54,69,55,81],[41,69,46,81],[39,69,40,81],[40,5,42,15],[59,5,61,6],[59,14,61,17],[47,69,49,81],[66,4,67,5],[62,70,64,92],[66,6,67,138],[59,110,61,138],[39,100,40,100],[41,82,43,136],[44,82,46,136],[48,82,49,85],[59,70,61,93],[39,82,40,84],[48,113,49,116],[59,104,61,109],[50,85,53,135],[39,85,40,99],[54,86,55,103]]}
[]
[null,"別記様式第２号（第３条関係）"]
[]
[]
[null,null,null,null,null,null,null,null,null,null,null,null,null,null,null,null,null,null,null,null,null,null,"自動車保管場所届出書",null,null,null,null,null,null,null,null,null,null,null,null,null,null,null,null,null,null,null,null,null,null,null,null,null,null,null,null,null,null,null,null,null,null,null,null,null,null,null,null,null,null,null,null,null,null,null,null,null,null,null,null,null,null,null,null,{"$f":"IF(入力!D5<>\"\",入力!D5,\"\")","v":""},null,null,null,null,null,null,null,null,null,null,null,null,null,null,null,null,null,null,null,null,null,"自動車の区分",null,null,null,null,null,null,null,null,null,null,null,null,null,null,null,null,null,null,null,null,{"$f":"IF(入力!D7<>\"\",入力!D7,\"\")","v":""}]
[]
[]
[]
[null,"車                  名",null,null,null,null,null,null,null,null,null,null,null,null,null,null,null,null,null,null,null,null,null,null,null,null,null,null,null,null,"型                  式",null,null,null,null,null,null,null,null,null,null,null,null,null,null,null,null,null,null,null,null,null,null,null,null,null,null,null,null,null,null,null,null,null,null,null,null,null,"車  　 台　   番    号",null,null,null,null,null,null,null,null,null,null,null,null,null,null,null,null,null,null,null,null,null,null,null,null,null,null,null,null,null,null,null,null,"自  動  車  の  大  き  さ"]
[]
[null,{"$f":"IF(入力!D9<>\"\",入力!D9,\"\")","v":""},null,null,null,null,null,null,null,null,null,null,null,null,null,null,null,null,null,null,null,null,null,null,null,null,null,null,null,null,{"$f":"IF(入力!D11<>\"\",入力!D11,\"\")","v":""},null,null,null,null,null,null,null,null,null,null,null,null,null,null,null,null,null,null,null,null,null,null,null,null,null,null,null,null,null,null,null,null,null,null,null,null,null,{"$f":"IF(入力!D13<>\"\",入力!D13,\"\")","v":""},null,null,null,null,null,null,null,null,null,null,null,null,null,null,null,null,null,null,null,null,null,null,null,null,null,null,null,null,null,null,null,null,"長  さ"]
[null,null,null,null,null,null,null,null,null,null,null,null,null,null,null,null,null,null,null,null,null,null,null,null,null,null,null,null,null,null,null,null,null,null,null,null,null,null,null,null,null,null,null,null,null,null,null,null,null,null,null,null,null,null,null,null,null,null,null,null,null,null,null,null,null,null,null,null,null,null,null,null,null,null,null,null,null,null,null,null,null,null,null,null,null,null,null,null,null,null,null,null,null,null,null,null,null,null,null,null,null,null,null,null,null,null,null,null,null,null,null,{"$f":"IF(入力!D16<>\"\",入力!D16,\"\")","v":""},null,null,null,null,null,{"$f":"IF(入力!E16<>\"\",入力!E16,\"\")","v":""},null,null,null,null,{"$f":"IF(入力!F16<>\"\",入力!F16,\"\")","v":""},null,null,null,null,{"$f":"IF(入力!G16<>\"\",入力!G16,\"\")","v":""},null,null,null,null,"ｾﾝﾁﾒｰﾄﾙ"]
[]
[null,null,null,null,null,null,null,null,null,null,null,null,null,null,null,null,null,null,null,null,null,null,null,null,null,null,null,null,null,null,null,null,null,null,null,null,null,null,null,null,null,null,null,null,null,null,null,null,null,null,null,null,null,null,null,null,null,null,null,null,null,null,null,null,null,null,null,null,null,null,null,null,null,null,null,null,null,null,null,null,null,null,null,null,null,null,null,null,null,null,null,null,null,null,null,null,null,null,null,null,null,"幅　　",null,null,null,null,null,null,null,null,null,null,null,null,null,null,null,{"$f":"IF(入力!E17<>\"\",入力!E17,\"\")","v":""},null,null,null,null,{"$f":"IF(入力!F17<>\"\",入力!F17,\"\")","v":""},null,null,null,null,{"$f":"IF(入力!G17<>\"\",入力!G17,\"\")","v":""},null,null,null,null,"ｾﾝﾁﾒｰﾄﾙ"]
[]
[null,null,null,null,null,null,null,null,null,null,null,null,null,null,null,null,null,null,null,null,null,null,null,null,null,null,null,null,null,null,null,null,null,null,null,null,null,null,null,null,null,null,null,null,null,null,null,null,null,null,null,null,null,null,null,null,null,null,null,null,null,null,null,null,null,null,null,null,null,null,null,null,null,null,null,null,null,null,null,null,null,null,null,null,null,null,null,null,null,null,null,null,null,null,null,null,null,null,null,null,null,"高  さ",null,null,null,null,null,null,null,null,null,null,null,null,null,null,null,{"$f":"IF(入力!E18<>\"\",入力!E18,\"\")","v":""},null,null,null,null,{"$f":"IF(入力!F18<>\"\",入力!F18,\"\")","v":""},null,null,null,null,{"$f":"IF(入力!G18<>\"\",入力!G18,\"\")","v":""},null,null,null,null,"ｾﾝﾁﾒｰﾄﾙ"]
[]
[]
[null,null,null,null,null,null,null,null,null,null,null,null,null,null,null,null,null,null,null,null,null,null,null,null,null,null,null,null,null,null,{"$f":"IF(入力!D20<>\"\",入力!D20,\"\")","v":""}]
[null,null,null,"自動車の使用の本拠の位置"]
[]
[]
[null,null,null,null,null,null,null,null,null,null,null,null,null,null,null,null,null,null,null,null,null,null,null,null,null,null,null,null,null,null,{"$f":"IF(入力!D22<>\"\",入力!D22,\"\")","v":""}]
[null,null,null,"自動車の保管場所の位置"]
[]
[null,null,null,null,null,null,null,null,null,null,null,null,null,null,null,null,null,null,null,null,null,null,null,null,null,null,null,null,null,null,"（変更前",null,null,null,null,null,null,null,null,null,{"$f":"IF(入力!D24<>\"\",入力!D24,\"\")","v":""},null,null,null,null,null,null,null,null,null,null,null,null,null,null,null,null,null,null,null,null,null,null,null,null,null,null,null,null,null,null,null,null,null,null,null,null,null,null,null,null,null,null,null,null,null,null,null,null,null,null,null,null,null,null,null,null,null,null,null,null,null,null,null,null,null,null,null,null,null,null,null,null,null,null,null,null,null,null,null,null,null,null,null,null,null,null,null,null,null,null,null,null,null,null,null,"）"]
[]
[]
[null,null,null,"※保管場所標章番号　",null,null,null,null,null,null,null,null,null,null,null,null,null,null,null,null,null,null,null,null,null,null,null,null,null,null,null,null,{"$f":"IF(入力!D26<>\"\",入力!D26,\"\")","v":""},null,null,null,null,{"$f":"IF(入力!E26<>\"\",入力!E26,\"\")","v":""},null,null,null,null,{"$f":"IF(入力!F26<>\"\",入力!F26,\"\")","v":""},null,null,null,null,null,null,{"$f":"IF(入力!G26<>\"\",入力!G26,\"\")","v":""},null,null,null,null,{"$f":"IF(入力!H26<>\"\",入力!H26,\"\")","v":""},null,null,null,null,null,{"$f":"IF(入力!I26<>\"\",入力!I26,\"\")","v":""},null,null,null,null,null,null,null,{"$f":"IF(入力!J26<>\"\",入力!J26,\"\")","v":""},null,null,null,null,{"$f":"IF(入力!K26<>\"\",入力!K26,\"\")","v":""},null,null,null,null,{"$f":"IF(入力!L26<>\"\",入力!L26,\"\")","v":""}]
[]
[]
[]
[]
[null,null,null,null,null,"上記の事項について届出をします。"]
[]
[]
[null,null,null,null,null,null,null,null,null,null,null,null,null,null,null,null,null,null,null,null,null,null,null,null,null,null,null,null,null,null,null,null,null,null,null,null,null,null,null,null,null,null,null,null,null,null,null,null,null,null,null,null,null,null,null,null,null,null,null,null,null,null,null,null,null,null,null,{"$f":"IF(入力!D30<>\"\",入力!D30,\"\")","v":"2024-02-22"}]
[null,null,null,null,null,null,null,null,null,null,null,null,null,null,":"]
[]
[null,null,null,null,null,null,null,null,null,null,null,null,null,null,null,null,null,null,null,null,null,null,null,null,null,null,null,null,null,null,null,null,null,null,null,null,null,null,null,null,null,null,null,null,null,null,null,null,null,null,null,null,null,null,null,null,null,null,null,null,null,null,null,null,null,null,null,null,"届　 出　 者","〒",null,null,null,null,null,null,null,null,null,null,null,null,"（",null,null,{"$f":"IF(入力!D33<>\"\",入力!D33,\"\")","v":""},null,null,null,null,null,null,null,null,null,null,null,null,null,null,"）"]
[null,null,null,null,null,{"$f":"IF(入力!D28<>\"\",入力!D28,\"\")","v":""},null,null,null,null,null,null,null,null,null,null,"警察署長殿"]
[null,null,null,null,null,null,null,null,null,null,null,null,null,null,null,null,null,null,null,null,null,null,null,null,null,null,null,null,null,null,null,null,null,null,null,null,null,null,null,null,null,null,null,null,null,null,null,null,null,null,null,null,null,null,null,null,null,null,null,null,null,null,null,null,null,null,null,null,null,"住所",null,null,null,null,null,null,null,null,null,null,null,null,{"$f":"IF(入力!D34<>\"\",入力!D34,\"\")","v":""}]
[]
[]
[null,null,null,null,null,null,null,null,null,null,null,null,null,null,null,null,null,null,null,null,null,null,null,null,null,null,null,null,null,null,null,null,null,null,null,null,null,null,null,null,null,null,null,null,null,null,null,null,null,null,null,null,null,null,null,null,null,null,null,null,null,null,null,null,null,null,null,null,null,null,null,null,null,null,null,null,null,null,null,null,null,null,{"$f":"IF(入力!D35<>\"\",入力!D35,\"\")","v":""}]
[]
[]
[null,null,null,null,null,null,null,null,null,null,null,null,null,null,null,null,null,null,null,null,null,null,null,null,null,null,null,null,null,null,null,null,null,null,null,null,null,null,null,null,null,null,null,null,null,null,null,null,null,null,null,null,null,null,null,null,null,null,null,null,null,null,null,null,null,null,null,null,null,"(フリガナ)"]
[null,null,null,null,null,null,null,null,null,null,null,null,null,null,null,null,null,null,null,null,null,null,null,null,null,null,null,null,null,null,null,null,null,null,null,null,null,null,null,null,null,null,null,null,null,null,null,null,null,null,null,null,null,null,null,null,null,null,null,null,null,null,null,null,null,null,null,null,null,null,null,null,null,null,null,null,null,null,null,null,null,null,"（",null,null,null,{"$f":"IF(入力!D36<>\"\",入力!D36,\"\")","v":""},null,null,null,null,null,null,null,null,null,null,null,null,null,null,null,null,null,null,null,null,null,null,null,null,null,null,"）"]
[]
[null,null,null,null,null,null,null,null,null,null,null,null,null,null,null,null,null,null,null,null,null,null,null,null,null,null,null,null,null,null,null,null,null,null,null,null,null,null,null,null,null,null,null,null,null,null,null,null,null,null,null,null,null,null,null,null,null,null,null,null,null,null,null,null,null,null,null,null,null,"氏名",null,null,null,null,null,null,null,null,null,null,null,null,null,null,null,{"$f":"IF(入力!D37<>\"\",入力!D37,\"\")","v":""}]
[]
[]
[]
[null,null,null,null,null,null,null,null,null,null,null,null,null,null,null,null,null,null,null,null,null,null,null,null,null,null,null,null,null,null,null,null,null,null,null,null,null,null,null,null,null,null,null,null,null,null,null,null,null,null,null,null,null,null,null,null,null,null,null,null,null,null,null,null,null,null,null,null,null,"電話番号",null,null,null,null,null,null,null,null,null,null,null,null,null,null,null,null,{"$f":"IF(入力!D38<>\"\",入力!D38,\"\")","v":""},null,null,null,null,null,null,null,null,null,null,null,null,null,null,null,null,null,{"$f":"IF(入力!H38<>\"\",入力!H38,\"\")","v":""}]
[]
[]
[]
[]
[null,null,null,null,null,"第",null,null,null,null,null,null,null,null,"号",null,null,null,null,null,null,null,null,null,null,null,null,null,null,null,null,null,null,null,null,null,"使用",null,null,{"$f":"IF(入力!D40<>\"\",入力!D40,\"\")","v":""},null,null,null,null,null,null,null,null,null,null,null,null,null,null,null,null,null,null,null,null,"連絡先",null,null,"氏名",null,null,null,null,null,null,{"$f":"IF(入力!D43<>\"\",入力!D43,\"\")","v":""},null,null,null,null,null,null,null,null,null,null,null,null,null,null,null,null,null,null,null,null,null,null,null,null,null,{"$f":"IF(入力!D46<>\"\",入力!D46,\"\")","v":""},null,null,null,"車両",null,null,null,"前車",null,null,null,null,null,{"$f":"IF(入力!D49<>\"\",入力!D49,\"\")","v":""}]
[]
[]
[null,null,null,null,null,null,null,null,null,null,null,null,null,null,null,null,null,null,null,null,null,null,null,null,null,null,null,null,null,null,null,null,null,null,null,null,"権原",null,null,null,null,null,null,null,null,null,null,null,null,null,null,null,null,null,null,null,null,null,null,null,null,null,null,"電話",null,null,null,null,null,null,{"$f":"IF(入力!D44<>\"\",入力!D44,\"\")","v":""},null,null,null,null,null,null,null,null,null,null,null,null,null,null,null,null,null,null,null,null,null,null,null,null,null,null,null,null,null,"番号",null,null,null,"現車",null,null,null,null,null,{"$f":"IF(入力!D50<>\"\",入力!D50,\"\")","v":""}]
[]
[]
[]
[null,"備考",null,null,"１",null,"法第５条、第１３条第３項及び附則第７項の規定による届出にあっては、「新規」の文字を、法第７条第１項（第１３条第４項及び附則第８項において準用する場合を含む。）の規定による届出"]
[]
[]
[null,null,null,null,null,"（以下「変更届出」という。)にあっては「変更」の文字を○で囲むこと。"]
[]
[]
[null,null,null,null,"２",null,"自動車の区分の欄は、法第４条第１項の処分に係る自動車の届出にあっては、「登録」の文字を、軽自動車である自動車の届出にあっては、「軽」の文字を○で囲むこと。"]
[]
[]
[]
[null,null,null,null,"３",null,"変更届出をする場合において、自動車の保管場所の位置欄には変更後の自動車の保管場所の位置を記入するほか、同欄括弧内に変更前の自動車の保管場所の位置を記入すること。"]
[]
[]
[null,null,null,null,"４",null,"次に掲げる場合は、所在図の添付を省略することができる。"]
[]
[]
[null,null,null,null,"(1)",null,null,"自動車の使用の本拠の位置が、旧自動車（届出者が保有者であり、又は保有者であった自動車であって届出に係るもの以外のものをいう。以下同じ。）に係る使用の本拠の位置と同一"]
[]
[null,null,null,null,null,null,"であり、かつ、届出に係る場所が旧自動車の保管場所とされており、又は当該届出の日前15日以内に保管場所とされていたとき。"]
[]
[null,null,null,null,"(2)",null,null,"自動車の使用の本拠の位置が、保管場所の位置と同一であるとき（(1)に該当する場合を除く。）。"]
[]
[]
[null,null,null,null,"５",null,"４(1)に該当することにより所在図の添付を省略する場合は、※印の欄に旧自動車に表示され、又は当該届出の日前15日以内に表示されていた保管場所標章に係る保管場所標章番号を記載"]
[]
[null,null,null,null,null,"すること。"]
[]
[null,null,null,null,"６",null,"用紙の大きさは、日本産業規格Ａ列４番とする。"]

{"sheet":"別記様式第３号","index":2,"n_rows":79,"n_cols":133,"rows_kept":79,"cut":false,"hidden":false,"merged":[[47,113,48,116],[59,4,60,62],[61,32,62,52],[61,53,62,59],[61,60,62,67],[61,78,62,82],[61,68,62,71],[57,5,58,6],[57,14,58,17],[57,44,58,97],[46,69,48,81],[47,82,48,85],[38,68,54,68],[53,69,54,81],[49,69,52,81],[39,5,41,15],[53,86,54,103],[38,100,39,100],[47,86,48,111],[49,85,52,134],[40,82,42,135],[43,82,45,135],[53,104,54,124],[77,3,77,37],[63,84,64,85],[63,95,64,96],[63,103,64,104],[66,74,68,84],[66,98,68,122],[75,3,75,38],[76,4,76,21],[75,53,75,138],[74,1,74,3],[76,53,76,79],[78,53,78,96],[61,89,62,94],[61,84,62,88],[74,43,74,138],[61,100,62,102],[61,95,62,99],[61,73,62,77],[77,50,77,138],[0,1,2,23],[3,22,6,112],[7,1,8,28],[7,30,8,66],[7,68,8,100],[7,101,8,138],[38,85,39,99],[35,135,36,136],[32,5,33,122],[9,101,11,108],[10,111,11,116],[10,122,11,126],[35,102,36,134],[18,3,19,27],[39,16,41,37],[40,69,45,81],[38,69,39,81],[38,82,39,84],[17,30,20,138],[21,30,25,138],[22,3,24,27],[10,132,11,138],[12,101,13,108],[12,117,13,121],[14,117,15,121],[9,1,16,29],[9,30,16,67],[9,68,16,100],[14,127,15,130],[10,117,11,121],[14,101,15,108],[14,132,15,138],[14,122,15,126],[12,122,13,126],[12,132,13,138],[10,127,11,130],[12,127,13,130]]}
[null,"別記様式第３号（第４条関係）"]
[]
[]
[null,null,null,null,null,null,null,null,null,null,null,null,null,null,null,null,null,null,null,null,null,null,"保管場所標章交付申請書"]
[]
[]
[]
[null,"車                  名",null,null,null,null,null,null,null,null,null,null,null,null,null,null,null,null,null,null,null,null,null,null,null,null,null,null,null,null,"型                  式",null,null,null,null,null,null,null,null,null,null,null,null,null,null,null,null,null,null,null,null,null,null,null,null,null,null,null,null,null,null,null,null,null,null,null,null,null,"車 　 台　  番   号",null,null,null,null,null,null,null,null,null,null,null,null,null,null,null,null,null,null,null,null,null,null,null,null,null,null,null,null,null,null,null,null,"自  動  車  の  大  き  さ"]
[]
[null,{"$f":"IF(入力!D9<>\"\",入力!D9,\"\")","v":""},null,null,null,null,null,null,null,null,null,null,null,null,null,null,null,null,null,null,null,null,null,null,null,null,null,null,null,null,{"$f":"IF(入力!D11<>\"\",入力!D11,\"\")","v":""},null,null,null,null,null,null,null,null,null,null,null,null,null,null,null,null,null,null,null,null,null,null,null,null,null,null,null,null,null,null,null,null,null,null,null,null,null,{"$f":"IF(入力!D13<>\"\",入力!D13,\"\")","v":""},null,null,null,null,null,null,null,null,null,null,null,null,null,null,null,null,null,null,null,null,null,null,null,null,null,null,null,null,null,null,null,null,"長  さ"]
[null,null,null,null,null,null,null,null,null,null,null,null,null,null,null,null,null,null,null,null,null,null,null,null,null,null,null,null,null,null,null,null,null,null,null,null,null,null,null,null,null,null,null,null,null,null,null,null,null,null,null,null,null,null,null,null,null,null,null,null,null,null,null,null,null,null,null,null,null,null,null,null,null,null,null,null,null,null,null,null,null,null,null,null,null,null,null,null,null,null,null,null,null,null,null,null,null,null,null,null,null,null,null,null,null,null,null,null,null,null,null,{"$f":"IF(入力!D16<>\"\",入力!D16,\"\")","v":""},null,null,null,null,null,{"$f":"IF(入力!E16<>\"\",入力!E16,\"\")","v":""},null,null,null,null,{"$f":"IF(入力!F16<>\"\",入力!F16,\"\")","v":""},null,null,null,null,{"$f":"IF(入力!G16<>\"\",入力!G16,\"\")","v":""},null,null,null,null,"ｾﾝﾁﾒｰﾄﾙ"]
[]
[null,null,null,null,null,null,null,null,null,null,null,null,null,null,null,null,null,null,null,null,null,null,null,null,null,null,null,null,null,null,null,null,null,null,null,null,null,null,null,null,null,null,null,null,null,null,null,null,null,null,null,null,null,null,null,null,null,null,null,null,null,null,null,null,null,null,null,null,null,null,null,null,null,null,null,null,null,null,null,null,null,null,null,null,null,null,null,null,null,null,null,null,null,null,null,null,null,null,null,null,null,"幅　　",null,null,null,null,null,null,null,null,null,null,null,null,null,null,null,{"$f":"IF(入力!E17<>\"\",入力!E17,\"\")","v":""},null,null,null,null,{"$f":"IF(入力!F17<>\"\",入力!F17,\"\")","v":""},null,null,null,null,{"$f":"IF(入力!G17<>\"\",入力!G17,\"\")","v":""},null,null,null,null,"ｾﾝﾁﾒｰﾄﾙ"]
[]
[null,null,null,null,null,null,null,null,null,null,null,null,null,null,null,null,null,null,null,null,null,null,null,null,null,null,null,null,null,null,null,null,null,null,null,null,null,null,null,null,null,null,null,null,null,null,null,null,null,null,null,null,null,null,null,null,null,null,null,null,null,null,null,null,null,null,null,null,null,null,null,null,null,null,null,null,null,null,null,null,null,null,null,null,null,null,null,null,null,null,null,null,null,null,null,null,null,null,null,null,null,"高  さ",null,null,null,null,null,null,null,null,null,null,null,null,null,null,null,{"$f":"IF(入力!E18<>\"\",入力!E18,\"\")","v":""},null,null,null,null,{"$f":"IF(入力!F18<>\"\",入力!F18,\"\")","v":""},null,null,null,null,{"$f":"IF(入力!G18<>\"\",入力!G18,\"\")","v":""},null,null,null,null,"ｾﾝﾁﾒｰﾄﾙ"]
[]
[]
[null,null,null,null,null,null,null,null,null,null,null,null,null,null,null,null,null,null,null,null,null,null,null,null,null,null,null,null,null,null,{"$f":"IF(入力!D20<>\"\",入力!D20,\"\")","v":""}]
[null,null,null,"自動車の使用の本拠の位置"]
[]
[]
[null,null,null,null,null,null,null,null,null,null,null,null,null,null,null,null,null,null,null,null,null,null,null,null,null,null,null,null,null,null,{"$f":"IF(入力!D22<>\"\",入力!D22,\"\")","v":""}]
[null,null,null,"自動車の保管場所の位置"]
[]
[]
[]
[]
[]
[]
[]
[]
[]
[null,null,null,null,null,"私は上記の自動車の保有者であるので、保管場所標章の交付を申請します。"]
[]
[]
[null,null,null,null,null,null,null,null,null,null,null,null,null,null,null,null,null,null,null,null,null,null,null,null,null,null,null,null,null,null,null,null,null,null,null,null,null,null,null,null,null,null,null,null,null,null,null,null,null,null,null,null,null,null,null,null,null,null,null,null,null,null,null,null,null,null,null,null,null,null,null,null,null,null,null,null,null,null,null,null,null,null,null,null,null,null,null,null,null,null,null,null,null,null,null,null,null,null,null,null,null,null,{"$f":"IF(入力!D30<>\"\",入力!D30,\"\")","v":"2024-02-22"}]
[null,null,null,null,null,null,null,null,null,null,null,null,null,null,":"]
[]
[null,null,null,null,null,null,null,null,null,null,null,null,null,null,null,null,null,null,null,null,null,null,null,null,null,null,null,null,null,null,null,null,null,null,null,null,null,null,null,null,null,null,null,null,null,null,null,null,null,null,null,null,null,null,null,null,null,null,null,null,null,null,null,null,null,null,null,null,"申 　請　 者","〒",null,null,null,null,null,null,null,null,null,null,null,null,"（",null,null,{"$f":"IF(入力!D33<>\"\",入力!D33,\"\")","v":""},null,null,null,null,null,null,null,null,null,null,null,null,null,null,"）"]
[null,null,null,null,null,{"$f":"IF(入力!D28<>\"\",入力!D28,\"\")","v":""},null,null,null,null,null,null,null,null,null,null,"警察署長殿"]
[null,null,null,null,null,null,null,null,null,null,null,null,null,null,null,null,null,null,null,null,null,null,null,null,null,null,null,null,null,null,null,null,null,null,null,null,null,null,null,null,null,null,null,null,null,null,null,null,null,null,null,null,null,null,null,null,null,null,null,null,null,null,null,null,null,null,null,null,null,"住所",null,null,null,null,null,null,null,null,null,null,null,null,{"$f":"IF(入力!D34<>\"\",入力!D34,\"\")","v":""}]
[]
[]
[null,null,null,null,null,null,null,null,null,null,null,null,null,null,null,null,null,null,null,null,null,null,null,null,null,null,null,null,null,null,null,null,null,null,null,null,null,null,null,null,null,null,null,null,null,null,null,null,null,null,null,null,null,null,null,null,null,null,null,null,null,null,null,null,null,null,null,null,null,null,null,null,null,null,null,null,null,null,null,null,null,null,{"$f":"IF(入力!D35<>\"\",入力!D35,\"\")","v":""}]
[]
[]
[null,null,null,null,null,null,null,null,null,null,null,null,null,null,null,null,null,null,null,null,null,null,null,null,null,null,null,null,null,null,null,null,null,null,null,null,null,null,null,null,null,null,null,null,null,null,null,null,null,null,null,null,null,null,null,null,null,null,null,null,null,null,null,null,null,null,null,null,null,"(フリガナ)"]
[null,null,null,null,null,null,null,null,null,null,null,null,null,null,null,null,null,null,null,null,null,null,null,null,null,null,null,null,null,null,null,null,null,null,null,null,null,null,null,null,null,null,null,null,null,null,null,null,null,null,null,null,null,null,null,null,null,null,null,null,null,null,null,null,null,null,null,null,null,null,null,null,null,null,null,null,null,null,null,null,null,null,"（",null,null,null,{"$f":"IF(入力!D36<>\"\",入力!D36,\"\")","v":""},null,null,null,null,null,null,null,null,null,null,null,null,null,null,null,null,null,null,null,null,null,null,null,null,null,null,"）"]
[]
[null,null,null,null,null,null,null,null,null,null,null,null,null,null,null,null,null,null,null,null,null,null,null,null,null,null,null,null,null,null,null,null,null,null,null,null,null,null,null,null,null,null,null,null,null,null,null,null,null,null,null,null,null,null,null,null,null,null,null,null,null,null,null,null,null,null,null,null,null,"氏名",null,null,null,null,null,null,null,null,null,null,null,null,null,null,null,{"$f":"IF(入力!D37<>\"\",入力!D37,\"\")","v":""}]
[]
[]
[]
[null,null,null,null,null,null,null,null,null,null,null,null,null,null,null,null,null,null,null,null,null,null,null,null,null,null,null,null,null,null,null,null,null,null,null,null,null,null,null,null,null,null,null,null,null,null,null,null,null,null,null,null,null,null,null,null,null,null,null,null,null,null,null,null,null,null,null,null,null,"電話番号",null,null,null,null,null,null,null,null,null,null,null,null,null,null,null,null,{"$f":"IF(入力!D38<>\"\",入力!D38,\"\")","v":""},null,null,null,null,null,null,null,null,null,null,null,null,null,null,null,null,null,{"$f":"IF(入力!H38<>\"\",入力!H38,\"\")","v":""}]
[]
[]
[]
[null,null,null,null,null,"第",null,null,null,null,null,null,null,null,"号",null,null,null,null,null,null,null,null,null,null,null,null,null,null,null,null,null,null,null,null,null,null,null,null,null,null,null,null,null,"保管場所標章番号通知書"]
[]
[null,null,null,null,"上記に記載された自動車に係る保管場所標章番号を通知します。"]
[]
[null,null,null,null,null,null,null,null,null,null,null,null,null,null,null,null,null,null,null,null,null,null,null,null,null,null,null,null,null,null,null,null,"保管場所標章番号"]
[]
[null,null,null,null,null,null,null,null,null,null,null,null,null,null,null,null,null,null,null,null,null,null,null,null,null,null,null,null,null,null,null,null,null,null,null,null,null,null,null,null,null,null,null,null,null,null,null,null,null,null,null,null,null,null,null,null,null,null,null,null,null,null,null,null,null,null,null,null,null,null,null,null,null,null,null,null,null,null,null,null,null,null,null,null,"年",null,null,null,null,null,null,null,null,null,null,"月",null,null,null,null,null,null,null,"日"]
[]
[]
[null,null,null,null,null,null,null,null,null,null,null,null,null,null,null,null,null,null,null,null,null,null,null,null,null,null,null,null,null,null,null,null,null,null,null,null,null,null,null,null,null,null,null,null,null,null,null,null,null,null,null,null,null,null,null,null,null,null,null,null,null,null,null,null,null,null,null,null,null,null,null,null,null,null,"警視庁",null,null,null,null,null,null,null,null,null,null,null,null,null,null,null,null,null,null,null,null,null,null,null,"警察署長"]
[]
[]
[]
[]
[]
[]
[]
[null,"備考",null,null,null,null,null,null,null,null,null,null,null,null,null,null,null,null,null,null,null,null,null,null,null,null,null,null,null,null,null,null,null,null,null,null,null,null,null,null,null,null,null,"［注］１　　この「保管場所標章番号通知書」は、保管場所標章が破損した場合"]
[null,null,null,"用紙の大きさは、日本産業規格Ａ列４番とする。",null,null,null,null,null,null,null,null,null,null,null,null,null,null,null,null,null,null,null,null,null,null,null,null,null,null,null,null,null,null,null,null,null,null,null,null,null,null,null,null,null,null,null,null,null,null,null,null,null,"　の「再交付申請時」に必要ですので、車検証の中などに入れ大切に保"]
[null,null,null,null,null,null,null,null,null,null,null,null,null,null,null,null,null,null,null,null,null,null,null,null,null,null,null,null,null,null,null,null,null,null,null,null,null,null,null,null,null,null,null,null,null,null,null,null,null,null,null,null,null,"　存してください。"]
[null,null,null,null,null,null,null,null,null,null,null,null,null,null,null,null,null,null,null,null,null,null,null,null,null,null,null,null,null,null,null,null,null,null,null,null,null,null,null,null,null,null,null,null,null,null,null,null,null,null," ２　　保管場所を変更した場合は、15日以内に保管場所を管轄する警察署"]
[null,null,null,null,null,null,null,null,null,null,null,null,null,null,null,null,null,null,null,null,null,null,null,null,null,null,null,null,null,null,null,null,null,null,null,null,null,null,null,null,null,null,null,null,null,null,null,null,null,null,null,null,null,"　長に変更届を提出してください。"]

{"sheet":"記載例","index":3,"n_rows":0,"n_cols":0,"rows_kept":0,"cut":false,"hidden":false,"merged":[]}